bitfinex/quotes_SOLUSD_20241205
["timestamp","ask_amount","ask_price","bid_price","bid_amount"]
[1733383256396,1.06479876,234.25,234.12,23.25175176]
[1733383257697,13.02715243,234.26,234.15,13.11711142]
[1733383257901,13.02715243,234.26,234.16,0.85163957]
[1733383258587,13.02715243,234.26,234.17,59.29399542]
[1733383258775,13.02715243,234.26,234.18,0.85159997]
[1733383259174,13.02715243,234.26,234.17,22.4]
[1733383261803,1.06465623,234.25,234.17,22.4]
[1733383262710,1.06465623,234.25,234.14,23.25163234]
[1733383263788,13.02715243,234.26,234.14,23.25163234]
[1733383263999,13.02715243,234.26,234.14,41.53795394]
[1733383266951,13.02715243,234.26,234.14,6.02084252]
[1733383267212,1.06463772,234.25,234.09,23.776884]
[1733383267402,1.06463772,234.25,234.11,23.776884]
[1733383267908,1.06463772,234.25,234.12,0.85190305]
[1733383268095,13.02715243,234.26,234.13,46.176884]
[1733383268279,13.02715243,234.26,234.14,13.96881963]
[1733383268796,13.02715243,234.26,234.15,23.776884]
[1733383268994,13.02715243,234.26,234.16,0.85164759]
[1733383271518,13.02715243,234.26,234.17,46.176884]
[1733383271707,13.02715243,234.26,234.18,23.25158633]
[1733383271907,13.02715243,234.26,234.19,23.776884]
[1733383272098,13.02715243,234.26,234.2,0.85150921]
[1733383273604,13.02715243,234.26,234.2,23.25150921]
[1733383273811,13.02715243,234.26,234.21,23.776884]
[1733383274115,13.02715243,234.26,234.23,46.176884]
[1733383275714,13.02715243,234.26,234.24,13.11711142]
[1733383275926,13.02715243,234.26,234.25,43.29347505]
[1733383276218,13.02715243,234.26,234.25,65.69347505]
[1733383276422,13.02715243,234.26,234.25,65.81896505]
[1733383276991,13.02715243,234.26,234.25,6.39947963]
[1733383277192,13.02715243,234.26,234.1,0.85111266]
[1733383277193,14.09104326,234.26,234.1,0.85111266]
[1733383277396,14.72169449,234.25,234.06,22.4]
[1733383277601,6.6408,234.23,234.06,22.4]
[1733383277807,1.2147,234.21,234.04,23.25184571]
[1733383278018,1.06512444,234.2,234.04,23.25184571]
[1733383278213,30.417684,234.19,233.97,23.25209942]
[1733383278397,23.776884,234.17,233.97,23.25209942]
[1733383278597,6.6408,234.19,233.98,13.11711142]
[1733383278598,16.67105529,234.16,233.98,13.11711142]
[1733383278944,14.99970269,234.15,234.0,13.11711142]
[1733383279089,14.99970269,234.15,234.02,13.11711142]
[1733383279295,14.99970269,234.15,234.03,6.95716037]
[1733383280116,14.99970269,234.15,234.04,35.51711142]
[1733383280313,1.06504266,234.14,234.04,22.4]
[1733383280523,14.99970269,234.15,234.05,0.85215995]
[1733383281400,14.99970269,234.15,234.04,22.4]
[1733383281705,14.99970269,234.15,234.05,23.776884]
[1733383281911,14.99970269,234.15,234.07,23.776884]
[1733383282216,14.99970269,234.15,234.07,46.176884]
[1733383282617,14.99970269,234.15,234.07,59.29399542]
[1733383282913,14.99970269,234.15,234.09,46.176884]
[1733383283106,14.99970269,234.15,234.11,23.776884]
[1733383283894,14.99970269,234.15,234.12,0.85181201]
[1733383284101,14.99970269,234.15,234.13,23.776884]
[1733383284510,14.99970269,234.15,234.14,66.72477148]
[1733383284912,14.99970269,234.15,234.14,66.59928148]
[1733383285422,14.99970269,234.15,234.14,66.72477148]
[1733383285734,6.3936,234.3,234.15,7.40029731]
[1733383286037,16.12934701,234.29,234.21,21.00235336]
[1733383286214,16.12934701,234.29,234.23,23.776884]
[1733383287331,16.12934701,234.29,234.23,32.776884]
[1733383287511,16.12934701,234.29,234.26,21.00235336]
[1733383287728,16.12934701,234.29,234.27,23.776884]
[1733383287914,16.12934701,234.29,234.27,30.58691888]
[1733383288623,16.12934701,234.29,234.27,39.58691888]
[1733383289035,16.12934701,234.29,234.27,60.58927224]
[1733383289219,16.12934701,234.29,234.28,45.63036036]
[1733383289458,16.12934701,234.29,234.28,61.56588524]
[1733383289618,6.2089,234.42,234.29,23.902374]
[1733383289829,6.2089,234.42,234.33,30.00235336]
[1733383290136,1.06364888,234.52,234.35,32.776884]
[1733383290341,16.27042531,234.43,234.36,0.85083637]
[1733383290506,16.27042531,234.43,234.37,23.776884]
[1733383290710,16.27042531,234.43,234.38,9.0]
[1733383290937,1.06379837,234.42,234.3,23.776884]
[1733383291639,16.27042531,234.43,234.31,0.85113744]
[1733383292516,16.27042531,234.43,234.32,23.776884]
[1733383293034,1.06384349,234.42,234.29,9.0]
[1733383293915,1.06384349,234.42,234.3,0.85119449]
[1733383298737,16.27042531,234.43,234.3,0.85119449]
[1733383299040,16.27042531,234.43,234.31,23.776884]
[1733383299417,16.27042531,234.43,234.32,0.85108294]
[1733383300543,1.06386309,234.42,234.3,5.2885049]
[1733383300746,7.48533751,234.39,234.25,9.0]
[1733383301153,7.48533751,234.39,234.25,9.8513818]
[1733383301448,6.4213,234.39,234.26,6.09204934]
[1733383302148,6.4213,234.39,234.27,0.85121151]
[1733383302358,6.4213,234.39,234.28,29.86893334]
[1733383303249,7.48532513,234.39,234.28,29.86893334]
[1733383303932,7.48532513,234.39,234.25,9.0]
[1733383304489,7.48532513,234.39,234.24,9.85132735]
[1733383306251,7.48532513,234.39,234.25,44.77923736]
[1733383306430,6.4213,234.39,234.27,23.776884]
[1733383306752,6.4213,234.39,234.29,32.776884]
[1733383307723,6.4213,234.39,234.29,9.0]
[1733383307928,7.48533181,234.39,234.29,9.0]
[1733383309751,7.48533181,234.39,234.23,23.776884]
[1733383310263,23.776884,234.36,234.16,9.0]
[1733383310563,1.2147,234.33,234.16,9.0]
[1733383310855,24.84161145,234.32,234.12,10.534]
[1733383311161,6.4711,234.31,234.12,9.0]
[1733383311449,23.776884,234.29,234.09,22.12458311]
[1733383311656,6.4711,234.31,234.09,13.12458311]
[1733383311657,23.776884,234.27,234.09,13.12458311]
[1733383311830,1.06485542,234.26,234.09,13.12458311]
[1733383312729,1.06485542,234.26,234.1,23.776884]
[1733383314550,1.06485542,234.26,234.12,23.776884]
[1733383314849,1.06471117,234.3,234.14,23.776884]
[1733383316239,31.021084,234.29,234.14,9.0]
[1733383316551,1.06482572,234.28,234.08,13.12458311]
[1733383316754,1.06482572,234.28,234.1,22.12458311]
[1733383317054,1.06482572,234.28,234.11,23.776884]
[1733383317351,1.06482572,234.28,234.11,37.7532883]
[1733383317549,1.06482572,234.28,234.12,13.12458311]
[1733383317754,1.06482572,234.28,234.14,23.776884]
[1733383319137,7.2442,234.29,234.15,9.85169163]
[1733383319336,7.2442,234.29,234.16,23.776884]
[1733383319854,7.2442,234.29,234.18,23.776884]
[1733383320036,7.2442,234.29,234.19,0.85150812]
[1733383320239,7.2442,234.29,234.2,32.776884]
[1733383320558,6.0295,234.29,234.22,23.776884]
[1733383321131,6.0295,234.29,234.21,23.776884]
[1733383325637,6.0295,234.29,234.21,32.776884]
[1733383325846,6.0295,234.29,234.23,23.776884]
[1733383326174,6.1191,234.34,234.27,36.90146711]
[1733383326336,13.68763143,234.4,234.29,36.90146711]
[1733383326337,19.80673143,234.4,234.29,36.90146711]
[1733383326543,19.80673143,234.4,234.3,24.62803219]
[1733383326847,19.80673143,234.4,234.3,37.7526153]
[1733383327046,18.59203143,234.4,234.3,44.29235948]
[1733383327363,18.59203143,234.4,234.31,13.12458311]
[1733383327556,18.59203143,234.4,234.32,33.62790346]
[1733383327857,12.47293143,234.4,234.32,46.75248657]
[1733383328167,12.47293143,234.4,234.35,23.776884]
[1733383328457,12.47293143,234.4,234.36,0.85091287]
[1733383329233,12.47293143,234.4,234.37,32.776884]
[1733383329747,12.47293143,234.4,234.37,23.776884]
[1733383330253,12.47293143,234.4,234.37,32.776884]
[1733383330947,12.47293143,234.4,234.36,13.97549598]
[1733383330948,12.47293143,234.4,234.39,32.776884]
[1733383331456,12.47293143,234.4,234.39,45.90146711]
[1733383331660,12.47293143,234.4,234.39,52.56670129]
[1733383331835,12.47293143,234.4,234.39,53.41737031]
[1733383332232,12.47293143,234.4,234.39,53.54286031]
[1733383332760,0.4964135,234.54,234.4,6.25189]
[1733383332966,0.4964135,234.54,234.5,13.12458311]
[1733383333137,0.4964135,234.54,234.51,0.85034321]
[1733383333568,0.4964135,234.54,234.51,1.85034321]
[1733383335153,0.4964135,234.54,234.52,23.776884]
[1733383335337,0.4964135,234.54,234.51,1.0]
[1733383337837,0.4964135,234.54,234.48,21.8090429]
[1733383338066,0.4964135,234.54,234.48,0.85035764]
[1733383338539,0.4964135,234.54,234.49,23.776884]
[1733383338737,0.4964135,234.54,234.51,23.776884]
[1733383340749,0.4964135,234.54,234.51,24.776884]
[1733383341049,0.4964135,234.54,234.51,1.0]
[1733383341356,0.4964135,234.54,234.51,1.85052468]
[1733383341666,0.4964135,234.54,234.52,23.776884]
[1733383345474,0.4964135,234.54,234.51,1.0]
[1733383346477,0.4964135,234.54,234.46,1.0]
[1733383349853,0.4964135,234.54,234.43,1.85067066]
[1733383350363,0.4964135,234.54,234.44,23.776884]
[1733383350877,7.6291,234.53,234.43,0.85067066]
[1733383351090,1.06363127,234.52,234.36,1.0]
[1733383351861,1.06363127,234.52,234.37,20.95868526]
[1733383352066,7.6291,234.53,234.42,20.95868526]
[1733383352270,7.6291,234.53,234.43,0.85060066]
[1733383353153,7.6291,234.53,234.44,23.776884]
[1733383353362,7.6291,234.53,234.42,23.776884]
[1733383353579,1.06342981,234.52,234.41,1.0]
[1733383355280,7.6291,234.53,234.41,1.0]
[1733383355473,7.6291,234.53,234.41,1.85071142]
[1733383355992,7.6291,234.53,234.42,23.776884]
[1733383356287,6.4144,234.53,234.44,23.776884]
[1733383356581,6.4144,234.53,234.46,23.776884]
[1733383356779,6.4144,234.53,234.45,1.0]
[1733383357889,1.06341854,234.52,234.45,1.0]
[1733383358259,6.4144,234.53,234.45,1.0]
[1733383360766,0.4964135,234.54,234.46,0.85073252]
[1733383360960,0.4964135,234.54,234.45,1.0]
[1733383361868,0.4964135,234.54,234.44,23.776884]
[1733383362478,0.4964135,234.54,234.46,23.776884]
[1733383363077,0.4964135,234.54,234.48,23.776884]
[1733383367071,0.4964135,234.54,234.47,1.0]
[1733383367889,0.4964135,234.54,234.45,23.776884]
[1733383371468,0.4964135,234.54,234.47,23.776884]
[1733383372283,0.4964135,234.54,234.47,24.776884]
[1733383376299,0.4964135,234.54,234.49,23.776884]
[1733383376474,0.4964135,234.54,234.51,24.776884]
[1733383379874,0.4964135,234.54,234.51,23.776884]
[1733383381675,0.4964135,234.54,234.5,1.0]
[1733383382900,0.4964135,234.54,234.47,23.776884]
[1733383383488,0.4964135,234.54,234.49,23.776884]
[1733383384389,0.4964135,234.54,234.47,23.776884]
[1733383384999,0.4964135,234.54,234.47,1.0]
[1733383387680,0.4964135,234.54,234.48,0.85061695]
[1733383388188,0.4964135,234.54,234.49,23.776884]
[1733383388789,0.4964135,234.54,234.49,24.776884]
[1733383389409,7.498,234.53,234.4,0.85047596]
[1733383389704,1.06358965,234.52,234.37,1.0]
[1733383390588,15.70410022,234.52,234.37,1.0]
[1733383391101,15.37195882,234.51,234.37,1.0]
[1733383391303,16.43552005,234.51,234.38,23.776884]
[1733383391506,16.43552005,234.51,234.39,0.85082212]
[1733383391814,14.51524722,234.5,234.39,6.9755413]
[1733383391984,1.06371291,234.49,234.32,1.0]
[1733383392183,1.06371291,234.49,234.32,14.11409471]
[1733383392497,1.06371291,234.49,234.33,0.85097776]
[1733383392700,1.06371291,234.49,234.33,19.33080832]
[1733383393413,1.06371291,234.49,234.34,29.14261985]
[1733383393605,1.06371291,234.49,234.36,23.776884]
[1733383395207,1.06371291,234.49,234.35,23.776884]
[1733383398092,14.51524722,234.5,234.37,24.776884]
[1733383398316,1.06352722,234.49,234.37,24.776884]
[1733383400518,14.51524722,234.5,234.37,24.776884]
[1733383400519,14.51524722,234.5,234.38,0.85090851]
[1733383401818,14.51524722,234.5,234.39,23.776884]
[1733383402400,14.51524722,234.5,234.41,23.776884]
[1733383402605,14.51524722,234.5,234.41,24.776884]
[1733383404594,1.0635505,234.49,234.41,24.776884]
[1733383404794,1.0635505,234.49,234.39,5.9425314]
[1733383405827,1.0635505,234.49,234.36,1.0]
[1733383407297,1.0635505,234.49,234.37,23.776884]
[1733383407495,1.0635505,234.49,234.37,29.63477818]
[1733383411404,14.51524722,234.5,234.38,0.85091619]
[1733383411598,1.06364524,234.52,234.39,23.776884]
[1733383417506,13.3837202,234.53,234.41,23.776884]
[1733383419535,1.06340383,234.52,234.41,23.776884]
[1733383419935,1.06340383,234.52,234.4,23.776884]
[1733383421326,1.06340383,234.52,234.4,24.62770096]
[1733383421716,13.3837202,234.53,234.4,24.62770096]
[1733383421922,13.3837202,234.53,234.4,31.88281736]
[1733383423027,13.3837202,234.53,234.4,40.27356943]
[1733383424731,13.3837202,234.53,234.4,31.88281736]
[1733383424906,13.3837202,234.53,234.4,40.27356943]
[1733383425514,13.3837202,234.53,234.41,8.39075207]
[1733383425708,13.3837202,234.53,234.43,8.39075207]
[1733383425931,13.3837202,234.53,234.45,23.776884]
[1733383426642,13.3837202,234.53,234.44,6.46456085]
[1733383426925,1.06341702,234.52,234.37,9.39075207]
[1733383427310,1.06341702,234.52,234.38,0.85085905]
[1733383428304,1.06341702,234.52,234.39,8.39075207]
[1733383428508,1.06341702,234.52,234.41,23.776884]
[1733383429002,13.3837202,234.53,234.42,0.8507836]
[1733383430334,13.3837202,234.53,234.43,23.776884]
[1733383430709,13.3837202,234.53,234.44,0.85064561]
[1733383431125,13.3837202,234.53,234.45,23.776884]
[1733383432920,13.3837202,234.53,234.44,23.776884]
[1733383434129,1.06331703,234.52,234.43,1.0]
[1733383434337,13.3837202,234.53,234.43,1.0]
[1733383436847,13.3837202,234.53,234.44,23.776884]
[1733383440947,13.3837202,234.53,234.46,23.776884]
[1733383441150,13.3837202,234.53,234.48,23.776884]
[1733383443446,13.3837202,234.53,234.5,23.776884]
[1733383443950,13.3837202,234.53,234.5,32.16763607]
[1733383444155,0.4964135,234.54,234.5,23.776884]
[1733383444450,0.4964135,234.54,234.52,23.776884]
[1733383444653,0.4964135,234.54,234.53,24.62723927]
[1733383451951,0.4964135,234.54,234.51,6.59687196]
[1733383453349,0.4964135,234.54,234.52,0.8505102]
[1733383453541,0.4964135,234.54,234.53,30.37375596]
[1733383461470,0.4964135,234.54,234.53,6.59687196]
[1733383461854,0.4964135,234.54,234.5,0.85047011]
[1733383461855,7.9527135,234.54,234.5,0.85047011]
[1733383462159,1.06347209,234.53,234.38,8.39075207]
[1733383462543,1.06347209,234.53,234.39,8.39075207]
[1733383462749,1.06347209,234.53,234.39,14.15304787]
[1733383462962,1.06341832,234.53,234.39,14.15304787]
[1733383463170,1.06341832,234.53,234.4,23.776884]
[1733383463470,7.9527135,234.54,234.42,23.776884]
[1733383463668,7.9527135,234.54,234.44,23.776884]
[1733383466956,1.06329859,234.53,234.33,1.5402]
[1733383467367,7.3838,234.52,234.31,1.85102128]
[1733383467572,1.06379669,234.51,234.32,8.39075207]
[1733383468072,1.06379669,234.51,234.32,13.38008265]
[1733383468290,1.06379669,234.51,234.33,23.776884]
[1733383470867,1.06379669,234.51,234.33,29.55391838]
[1733383471457,1.06379669,234.51,234.35,23.776884]
[1733383471864,1.06379669,234.51,234.35,29.20837346]
[1733383472081,1.06379669,234.51,234.36,5.43148946]
[1733383472384,1.06379669,234.51,234.37,23.776884]
[1733383473856,1.06379669,234.51,234.39,23.776884]
[1733383474074,7.3838,234.52,234.39,32.16763607]
[1733383474276,7.3838,234.52,234.39,37.59912553]
[1733383474483,7.3838,234.52,234.4,15.18335265]
[1733383474682,7.3838,234.52,234.41,32.16763607]
[1733383474860,7.3838,234.52,234.41,37.96023665]
[1733383475682,7.3838,234.52,234.43,23.776884]
[1733383476385,7.3838,234.52,234.43,29.56948458]
[1733383477878,0.4964135,234.54,234.44,0.85065353]
[1733383478062,0.4964135,234.54,234.45,23.776884]
[1733383478263,0.4964135,234.54,234.47,23.776884]
[1733383478969,7.8374,234.53,234.3,1.0]
[1733383479289,7.8374,234.53,234.31,0.85108939]
[1733383479290,8.90058263,234.53,234.31,0.85108939]
[1733383479490,8.90058263,234.53,234.3,9.39075207]
[1733383480071,8.90058263,234.53,234.3,14.11625058]
[1733383480268,8.90058263,234.53,234.31,23.776884]
[1733383480492,8.90058263,234.53,234.31,24.62799504]
[1733383481072,8.90058263,234.53,234.32,13.11625058]
[1733383481278,8.90058263,234.53,234.33,23.776884]
[1733383482066,8.90058263,234.53,234.34,13.11625058]
[1733383482271,8.90058263,234.53,234.35,23.776884]
[1733383483659,8.90058263,234.53,234.37,36.89313458]
[1733383483978,8.90058263,234.53,234.37,37.74399566]
[1733383484872,8.90058263,234.53,234.37,43.26666568]
[1733383486465,8.90058263,234.53,234.4,23.776884]
[1733383487368,7.8374,234.53,234.4,23.776884]
[1733383487789,7.8374,234.53,234.41,13.11625058]
[1733383488380,7.8374,234.53,234.42,23.776884]
[1733383488588,7.8374,234.53,234.42,13.11625058]
[1733383488796,7.8374,234.53,234.43,23.776884]
[1733383489368,7.8374,234.53,234.43,24.776884]
[1733383490492,7.8374,234.53,234.43,30.83760958]
[1733383490665,0.4964135,234.54,234.43,43.95386016]
[1733383490863,0.4964135,234.54,234.45,23.776884]
[1733383491380,0.4964135,234.54,234.44,23.776884]
[1733383492499,0.4964135,234.54,234.38,20.0]
[1733383492669,7.5565,234.53,234.37,0.85083833]
[1733383492874,6.3418,234.51,234.32,13.11625058]
[1733383493174,1.06378893,234.5,234.33,13.11625058]
[1733383493375,1.06378893,234.5,234.33,18.85363727]
[1733383493578,1.06378893,234.5,234.33,19.70460789]
[1733383493978,1.06378893,234.5,234.34,5.73738669]
[1733383494378,1.06378893,234.5,234.35,0.85094746]
[1733383494681,1.06378893,234.5,234.36,23.776884]
[1733383495696,1.06378893,234.5,234.35,23.776884]
[1733383495875,1.06378893,234.5,234.34,23.776884]
[1733383496300,1.06378893,234.5,234.33,36.89313458]
[1733383497297,1.06378893,234.5,234.33,42.63052127]
[1733383497877,1.06378893,234.5,234.34,19.70464117]
[1733383498083,1.06378893,234.5,234.35,23.776884]
[1733383498280,1.06378893,234.5,234.36,13.24174058]
[1733383498484,6.3418,234.51,234.41,23.776884]
[1733383498689,6.3418,234.51,234.43,23.776884]
[1733383498996,7.3571,234.49,234.25,2.5513]
[1733383499198,1.06407641,234.48,234.26,13.11625058]
[1733383500303,1.06407641,234.48,234.27,23.776884]
[1733383500795,1.06407641,234.48,234.28,13.11625058]
[1733383500986,1.06407641,234.48,234.29,23.776884]
[1733383502275,1.06407641,234.48,234.3,13.11625058]
[1733383502675,1.06407641,234.48,234.31,23.776884]
[1733383503588,1.06407641,234.48,234.32,36.89313458]
[1733383503911,1.06407641,234.48,234.33,36.89313458]
[1733383504700,1.06407641,234.48,234.35,23.776884]
[1733383505101,1.06407641,234.48,234.35,13.11625058]
[1733383505407,1.06407641,234.48,234.36,36.89313458]
[1733383505605,7.3571,234.49,234.39,36.89313458]
[1733383505906,7.3571,234.49,234.41,23.776884]
[1733383506305,7.3571,234.49,234.42,13.11625058]
[1733383506606,6.1424,234.49,234.43,23.776884]
[1733383509001,8.0667135,234.54,234.43,24.62758059]
[1733383509380,8.0667135,234.54,234.43,30.43820061]
[1733383509707,8.0667135,234.54,234.45,23.776884]
[1733383511307,8.0667135,234.54,234.45,36.89313458]
[1733383511510,8.0667135,234.54,234.47,23.776884]
[1733383513102,0.4964135,234.54,234.48,14.96677649]
[1733383513409,0.4964135,234.54,234.49,23.776884]
[1733383513983,0.4964135,234.54,234.51,23.776884]
[1733383515085,0.4964135,234.54,234.48,6.8059978]
[1733383515281,0.4964135,234.54,234.49,23.776884]
[1733383515486,0.4964135,234.54,234.44,23.776884]
[1733383516187,0.4964135,234.54,234.46,23.776884]
[1733383516602,0.4964135,234.54,234.46,36.89313458]
[1733383516910,0.4964135,234.54,234.47,0.85054741]
[1733383517110,0.4964135,234.54,234.48,23.776884]
[1733383518299,0.4964135,234.54,234.49,0.85048968]
[1733383518721,0.4964135,234.54,234.5,23.776884]
[1733383520404,0.4964135,234.54,234.48,23.776884]
[1733383521119,0.4964135,234.54,234.47,23.776884]
[1733383521412,0.4964135,234.54,234.47,37.74365863]
[1733383521612,0.4964135,234.54,234.49,13.11625058]
[1733383521824,0.4964135,234.54,234.5,23.776884]
[1733383524200,0.4964135,234.54,234.48,23.776884]
[1733383524497,0.4964135,234.54,234.5,23.776884]
[1733383528897,0.4964135,234.54,234.49,23.776884]
[1733383537153,0.4964135,234.54,234.51,32.15867658]
[1733383537706,0.4964135,234.54,234.53,23.776884]
[1733383537901,0.4964135,234.54,234.53,32.15867658]
[1733383538121,0.4964135,234.54,234.53,38.32127549]
[1733383538310,0.4964135,234.54,234.53,29.93948291]
[1733383538625,0.4964135,234.54,234.53,23.776884]
[1733383538834,0.4964135,234.54,234.49,0.85037795]
[1733383539025,0.4964135,234.54,234.5,8.38179258]
[1733383539327,0.4964135,234.54,234.51,0.85037386]
[1733383539515,0.4964135,234.54,234.52,8.38179258]
[1733383539723,0.4964135,234.54,234.53,0.85034964]
[1733383539906,0.4964135,234.54,234.5,8.38179258]
[1733383540229,0.4964135,234.54,234.51,0.85040871]
[1733383540925,0.4964135,234.54,234.53,8.38179258]
[1733383541130,0.4964135,234.54,234.53,33.00895987]
[1733383541436,0.4964135,234.54,234.53,33.13444987]
[1733383544227,0.4964135,234.54,234.53,39.07340878]
[1733383544814,0.4964135,234.54,234.53,6.7892422]
[1733383545020,0.4964135,234.54,234.53,15.17103478]
[1733383545218,0.4964135,234.54,234.53,15.29652478]
[1733383545739,0.4964135,234.54,234.53,9.35756587]
[1733383545915,0.4964135,234.54,234.53,44.75265729]
[1733383546115,0.4964135,234.54,234.53,53.13444987]
[1733383546525,0.4964135,234.54,234.53,44.75265729]
[1733383546813,0.4964135,234.54,234.53,53.13444987]
[1733383548143,0.4964135,234.54,234.53,54.13444987]
[1733383549932,0.4964135,234.54,234.53,60.19889878]
[1733383550527,0.4964135,234.54,234.53,54.13444987]
[1733383551520,0.4964135,234.54,234.53,1.85028329]
[1733383551837,0.4964135,234.54,234.53,9.38179258]
[1733383552715,0.4964135,234.54,234.53,33.15867658]
[1733383553419,0.4964135,234.54,234.53,24.776884]
[1733383553927,0.4964135,234.54,234.48,23.776884]
[1733383554135,0.4964135,234.54,234.49,0.85042651]
[1733383554540,0.4964135,234.54,234.5,8.38179258]
[1733383554726,0.4964135,234.54,234.52,8.38179258]
[1733383555049,0.4964135,234.54,234.51,8.38179258]
[1733383555538,0.4964135,234.54,234.52,8.38179258]
[1733383555737,0.4964135,234.54,234.53,23.776884]
[1733383559731,0.4964135,234.54,234.53,32.15867658]
[1733383561024,0.4964135,234.54,234.53,38.0966966]
[1733383561538,0.4964135,234.54,234.53,38.2221866]
[1733383561728,0.4964135,234.54,234.53,38.3476766]
[1733383562133,0.4964135,234.54,234.53,39.3476766]
[1733383562337,7.4672,234.67,234.56,0.12549]
[1733383562551,7.4672,234.67,234.6,28.38179258]
[1733383562854,7.4672,234.67,234.61,23.776884]
[1733383563233,1.55895179,234.77,234.61,23.776884]
[1733383563234,6.2037,234.72,234.62,8.38179258]
[1733383563437,6.2037,234.72,234.61,32.15867658]
[1733383563741,6.2037,234.72,234.61,23.776884]
[1733383564738,6.2037,234.72,234.63,23.776884]
[1733383573251,6.2037,234.72,234.64,0.84998911]
[1733383573448,6.2037,234.72,234.65,23.776884]
[1733383575258,1.06235502,234.71,234.57,20.0]
[1733383575434,1.06235502,234.71,234.59,8.38179258]
[1733383575636,1.06235502,234.71,234.58,0.85010243]
[1733383575637,6.2037,234.72,234.6,9.23189325]
[1733383575834,6.2037,234.72,234.61,8.38179258]
[1733383576251,6.2037,234.72,234.6,9.23189325]
[1733383576660,6.2037,234.72,234.61,23.776884]
[1733383577333,1.06254346,234.71,234.61,23.776884]
[1733383577657,1.06254346,234.71,234.58,23.776884]
[1733383577834,1.06254346,234.71,234.59,20.85009768]
[1733383578233,1.06254346,234.71,234.53,8.38179258]
[1733383578437,1.06254346,234.71,234.54,0.85023902]
[1733383578864,1.06254346,234.71,234.54,9.2320316]
[1733383579072,1.06254346,234.71,234.55,8.38179258]
[1733383579363,1.06254346,234.71,234.56,0.85014387]
[1733383579548,6.2037,234.72,234.57,32.15867658]
[1733383579867,6.2037,234.72,234.59,32.15867658]
[1733383580048,6.2037,234.72,234.61,23.776884]
[1733383580242,0.83031435,234.73,234.63,23.776884]
[1733383581149,0.83031435,234.73,234.64,23.776884]
[1733383583475,0.83031435,234.73,234.66,23.776884]
[1733383583643,1.06236933,234.76,234.66,23.776884]
[1733383583842,1.55878314,234.77,234.66,23.776884]
[1733383585059,15.14414495,234.77,234.66,23.776884]
[1733383588780,15.14414495,234.77,234.64,23.776884]
[1733383588960,15.14414495,234.77,234.64,24.62674843]
[1733383590286,14.08177531,234.77,234.64,24.62674843]
[1733383590585,0.4964135,234.77,234.64,24.62674843]
[1733383593281,0.4964135,234.77,234.76,16.32379258]
[1733383593465,13.61207328,234.88,234.79,20.0]
[1733383593658,13.61207328,234.88,234.8,24.62617262]
[1733383593896,13.61207328,234.88,234.82,23.776884]
[1733383594079,13.61207328,234.88,234.82,24.62619188]
[1733383594368,0.8304,234.94,234.82,24.62619188]
[1733383594768,0.8304,234.94,234.82,33.00798446]
[1733383596196,0.8304,234.94,234.83,8.38179258]
[1733383596362,0.8304,234.94,234.84,8.38179258]
[1733383597972,0.8304,234.94,234.83,8.38179258]
[1733383598174,0.8304,234.94,234.84,8.38179258]
[1733383598359,0.8304,234.94,234.85,8.38179258]
[1733383598562,0.8304,234.94,234.84,8.38179258]
[1733383598782,1.06155772,234.93,234.79,20.0]
[1733383598972,1.06155772,234.93,234.77,0.84945574]
[1733383599284,1.06155772,234.93,234.79,8.38179258]
[1733383600076,1.06155772,234.93,234.8,8.38179258]
[1733383601363,1.06155772,234.93,234.83,8.38179258]
[1733383601568,1.06161671,234.96,234.82,9.23109414]
[1733383601786,1.06161671,234.96,234.81,32.15867658]
[1733383602488,1.06161671,234.96,234.82,8.38179258]
[1733383603096,0.4964135,235.0,234.94,8.38179258]
[1733383603302,0.4964135,235.0,234.87,20.0]
[1733383603469,0.4964135,235.0,234.93,8.38179258]
[1733383604087,0.4964135,235.0,234.94,8.38179258]
[1733383604296,0.4964135,235.0,234.95,8.38179258]
[1733383604998,0.4964135,235.0,234.96,8.38179258]
[1733383605169,0.4964135,235.0,234.95,8.38179258]
[1733383606391,0.4964135,235.0,234.96,8.38179258]
[1733383606574,0.4964135,235.0,234.95,8.38179258]
[1733383609096,0.4964135,235.0,234.93,0.84891958]
[1733383609277,0.4964135,235.0,234.95,8.38179258]
[1733383609908,0.4964135,235.0,234.96,8.38179258]
[1733383611199,0.4964135,235.0,234.95,8.38179258]
[1733383611494,0.4964135,235.0,234.96,8.38179258]
[1733383614509,0.4964135,235.0,234.94,8.38179258]
[1733383614795,0.4964135,235.0,234.91,8.38179258]
[1733383616202,1.8230135,235.0,234.88,8.38179258]
[1733383616411,6.5476,234.99,234.83,6.5088]
[1733383616701,1.06164563,234.98,234.84,8.38179258]
[1733383616884,1.06164563,234.98,234.85,8.38179258]